[Event "58th Akiba Rubinstein A 2022"]
[Site "Polanica-Zdroj"]
[Date "2022.08.15"]
[Round "3.7"]
[White "Dziewonski, Dariusz"]
[Black "Hetzer, Volkhard"]
[Result "1-0"]
[ECO "C57"]
[WhiteElo "2029"]
[BlackElo "1921"]
[Annotator "NA RC"]
[PlyCount "93"]
[EventDate "2022.08.13"]
[EventCountry "POL"]
[SourceTitle "playchess.com"]
[Source "ChessBase"]
[SourceQuality "1"]
[TimeControl "40/5400+30:1800+30"]

1. e4 e5 2. Nf3 Nc6 3. Bc4 Nf6 4. Ng5 d5 5. exd5 b5 6. Bf1 Nd4 7. c3 Nxd5 8. cxd4 Qxg5 9. Bxb5+ Kd8 10. O-O Bb7 11. Qf3 Rb8 12. dxe5 Ne3 $1 {[#]} 13. Qh3 $1 Qxg2+ 14. Qxg2 Nxg2 15. d4 Be7 $14 16. f4 Nh4 17. Be2 Bg2 18. Rd1 Rb6 19. Kf2 Bh3 20. Nd2 Rg6 21. Rg1 Nf5 22. Nf3 Rxg1 23. Kxg1 Bg4 24. Bd3 Kc8 25. Bxf5+ Bxf5 26. Kf2 Be4 27. Be3 Kb7 28. Nd2 Bd5 29. b3 Re8 30. Nc4 Bh4+ 31. Ke2 Be4 32. Rg1 g6 33. Bf2 Be7 34. Rd1 Rd8 35. Ne3 Bd5 36. Nxd5 Rxd5 37. Rc1 Ra5 38. a4 Rd5 39. Kd3 c6 40. Kc4 a6 41. Rd1 Kc8 42. Rd3 Bf8 43. Rh3 h6 44. f5 Kd7 45. fxg6 fxg6 46. Rf3 Be7 47. Rf7 1-0

[Event "58th Akiba Rubinstein A 2022"]
[Site "Polanica-Zdroj"]
[Date "2022.08.15"]
[Round "3.8"]
[White "Iwanczuk, Krzysztof"]
[Black "Betkowski, Andrzej"]
[Result "1/2-1/2"]
[ECO "C18"]
[WhiteElo "1947"]
[BlackElo "2063"]
[Annotator "NA RC"]
[PlyCount "62"]
[EventDate "2022.08.13"]
[EventCountry "POL"]
[SourceTitle "playchess.com"]
[Source "ChessBase"]
[SourceQuality "1"]
[TimeControl "40/5400+30:1800+30"]

1. e4 {[%emt 0:00:03]} e6 {[%emt 0:00:08]} 2. d4 {[%emt 0:00:07]} d5 {[%emt 0:00:07]} 3. Nc3 {[%emt 0:00:07]} Bb4 {[%emt 0:01:01]} 4. e5 {[%emt 0:00:08]} c5 {[%emt 0:00:15]} 5. a3 {[%emt 0:00:08]} Bxc3+ {[%emt 0:00:21]} 6. bxc3 {[%emt 0:00:08]} Qa5 {[%emt 0:00:54]} 7. Bd2 {[%emt 0:00:22]} Qa4 {[%emt 0:00:26]} 8. Qg4 {[%emt 0:03:52]} Kf8 {[%emt 0:00:54]} 9. h4 {[%emt 0:06:09]} Nc6 {[%emt 0:05:26]} 10. Nf3 {[%emt 0:01:09]} Nge7 {[%emt 0:02:00]} 11. h5 {[%emt 0:05:32]} h6 {[%emt 0:00:52]} 12. Ra2 $11 {[%emt 0:08:54]} b6 {[%emt 0:09:22]} 13. Bd3 {[%emt 0:22:05]} Ba6 {[%emt 0:02:41]} 14. Qf4 {[%emt 0:09:20]} Bxd3 {[%emt 0:12:01]} 15. cxd3 {[%emt 0:00:07]} Qb5 {[%emt 0:18:14]} 16. Ke2 {[%emt 0:10:19]} c4 {[%emt 0:04:30]} 17. Rd1 {[%emt 0:01:25]} cxd3+ {[%emt 0:01:48]} 18. Kf1 {[%emt 0:00:23]} Na5 {[%emt 0:01:50]} 19. a4 {[%emt 0:04:32]} Qc4 {[%emt 0:01:50]} 20. Ra3 {[%emt 0:00:46]} Rc8 {[%emt 0:02:54]} 21. Rb1 {[%emt 0:01:54]} Ke8 {[%emt 0:04:04]} 22. Ne1 {[%emt 0:04:54]} Qa6 {[%emt 0:02:35]} 23. Raa1 {[%emt 0:01:13]} Rf8 {[%emt 0:02:47]} 24. Kg1 {[%emt 0:01:11]} Kd7 {[%emt 0:02:24]} 25. Qf3 {[%emt 0:02:56]} Qc4 {[%emt 0:04:11]} 26. Rb4 {[%emt 0:01:59]} Qa6 {[%emt 0:01:35]} 27. Nxd3 {[%emt 0:00:24]} Rc4 {[%emt 0:01:34]} 28. Be1 {[%emt 0:02:27]} Nac6 {[%emt 0:02:38]} 29. Rxc4 {[%emt 0:01:49]} Qxc4 {[%emt 0:00:17]} 30. Qd1 {[%emt 0:03:48]} Na5 {[%emt 0:01:17]} 31. Ra3 {[%emt 0:01:28]} Qc7 {[%emt 0:02:31]} 1/2-1/2

[Event "58th Akiba Rubinstein A 2022"]
[Site "Polanica-Zdroj"]
[Date "2022.08.15"]
[Round "3.9"]
[White "Barwinska, Ewa"]
[Black "Kolodziejski, Piotr"]
[Result "0-1"]
[ECO "B40"]
[WhiteElo "1940"]
[BlackElo "2107"]
[Annotator "NA RC"]
[PlyCount "106"]
[EventDate "2022.08.13"]
[EventCountry "POL"]
[SourceTitle "playchess.com"]
[Source "ChessBase"]
[SourceQuality "1"]
[TimeControl "40/5400+30:1800+30"]

1. e4 {[%emt 0:00:01]} c5 {[%emt 0:00:08]} 2. Nf3 {[%emt 0:00:18]} e6 {[%emt 0:00:06]} 3. d3 {[%emt 0:00:06]} Nc6 {[%emt 0:03:32]} 4. g3 {[%emt 0:00:37]} d6 {[%emt 0:07:11]} 5. Bg2 {[%emt 0:01:29]} g6 {[%emt 0:01:26]} 6. O-O {[%emt 0:02:04]} Bg7 {[%emt 0:00:17]} 7. c3 {[%emt 0:00:41]} Nge7 {[%emt 0:00:59]} 8. d4 {[%emt 0:02:28]} cxd4 {[%emt 0:00:46]} 9. cxd4 {[%emt 0:06:13]} O-O {[%emt 0:03:25]} 10. Be3 $11 {[%emt 0:08:11]} (10. Nc3 $142) 10... Bd7 {[%emt 0:06:43]} 11. Nc3 {[%emt 0:04:50]} a6 {[%emt 0:00:41]} 12. Qd2 {[%emt 0:03:46]} Rc8 {[%emt 0:10:17]} 13. Bh6 {[%emt 0:01:50]} Na5 {[%emt 0:09:11]} 14. Bxg7 {[%emt 0:00:42]} Kxg7 {[%emt 0:00:06]} 15. b3 {[%emt 0:03:30]} b5 {[%emt 0:01:08]} 16. Rac1 {[%emt 0:01:26]} Qb6 {[%emt 0:07:26]} 17. e5 {[%emt 0:09:03]} d5 {[%emt 0:05:31]} 18. Ne2 {[%emt 0:03:18]} h6 {[%emt 0:05:13]} 19. h4 {[%emt 0:03:06]} b4 {[%emt 0:04:18]} 20. Rfe1 {[%emt 0:07:42]} Rc6 {[%emt 0:05:06]} 21. Rxc6 {[%emt 0:01:35]} Naxc6 {[%emt 0:00:05]} 22. Qf4 {[%emt 0:02:12]} Ng8 {[%emt 0:03:59]} 23. g4 {[%emt 0:06:21]} Nb8 {[%emt 0:03:09]} 24. h5 {[%emt 0:05:50]} Bb5 {[%emt 0:04:26]} 25. Ng3 {[%emt 0:01:40]} Qd8 {[%emt 0:02:12]} 26. g5 {[%emt 0:04:33]} Nc6 {[%emt 0:01:23]} 27. Rd1 {[%emt 0:02:03]} hxg5 {[%emt 0:04:32]} 28. Nxg5 {[%emt 0:00:33]} Qe7 {[%emt 0:01:49]} 29. Bh3 {[%emt 0:02:13]} f5 {[%emt 0:02:19]} 30. Kh2 {[%emt 0:06:51]} Nh6 {[%emt 0:02:55]} 31. Rg1 {[%emt 0:07:38]} Nxd4 {[%emt 0:00:06]} 32. hxg6 {[%emt 0:02:15]} Qxg5 {[%emt 0:01:20]} 33. Qxd4 {[%emt 0:00:36]} Ng4+ {[%emt 0:00:36]} 34. Bxg4 {[%emt 0:00:42]} fxg4 {[%emt 0:00:04]} 35. Kg2 {[%emt 0:00:55]} Kxg6 {[%emt 0:00:58]} 36. Rh1 {[%emt 0:00:34]} Qf4 {[%emt 0:00:46]} 37. Qa7 {[%emt 0:00:34]} Rf7 {[%emt 0:00:57]} 38. Qb6 {[%emt 0:00:32]} Qxe5 {[%emt 0:01:36]} 39. Rh5 {[%emt 0:00:20]} Qf6 {[%emt 0:00:36]} 40. Kg1 {[%emt 0:00:00]} Rh7 {[%emt 0:00:00]} 41. Rxh7 {[%emt 0:02:04]} Kxh7 {[%emt 0:02:32]} 42. Qc5 {[%emt 0:05:24]} Kg6 {[%emt 0:04:36]} 43. Qxb4 {[%emt 0:02:29]} d4 {[%emt 0:02:54]} 44. a4 {[%emt 0:06:50]} Bc6 {[%emt 0:00:51]} 45. Qc4 {[%emt 0:00:45]} Bd5 {[%emt 0:03:03]} 46. Qd3+ {[%emt 0:00:09]} Kh6 {[%emt 0:01:19]} 47. Qd2+ {[%emt 0:00:42]} Kh7 {[%emt 0:03:32]} 48. Qc2+ {[%emt 0:01:50]} Kg8 {[%emt 0:07:06]} 49. Qc8+ {[%emt 0:01:20]} Qf8 {[%emt 0:00:58]} 50. Qxa6 {[%emt 0:03:43]} Qf3 {[%emt 0:00:57]} 51. Qc8+ {[%emt 0:00:05]} Kh7 {[%emt 0:01:00]} 52. Qc2+ {[%emt 0:03:03]} d3 {[%emt 0:00:22]} 53. Qc7+ {[%emt 0:01:48]} Kg6 {[%emt 0:00:14]} 0-1

[Event "58th Akiba Rubinstein A 2022"]
[Site "Polanica-Zdroj"]
[Date "2022.08.15"]
[Round "3.10"]
[White "Kasprzak, Lukasz"]
[Black "Sliwerski, Radoslaw"]
[Result "1-0"]
[ECO "E32"]
[WhiteElo "1938"]
[BlackElo "1951"]
[Annotator "NA RC"]
[PlyCount "120"]
[EventDate "2022.08.13"]
[EventCountry "POL"]
[SourceTitle "playchess.com"]
[Source "ChessBase"]
[SourceQuality "1"]
[TimeControl "40/5400+30:1800+30"]

1. d4 {[%emt 0:00:04]} Nf6 {[%emt 0:04:57]} 2. c4 {[%emt 0:00:32]} e6 {[%emt 0:00:01]} 3. Nc3 {[%emt 0:00:43]} Bb4 {[%emt 0:00:05]} 4. Qc2 {[%emt 0:00:48]} O-O {[%emt 0:00:04]} 5. a3 {[%emt 0:00:21]} Bxc3+ {[%emt 0:00:04]} 6. Qxc3 {[%emt 0:00:02]} d5 {[%emt 0:00:11]} 7. Bg5 {[%emt 0:08:39]} dxc4 {[%emt 0:00:21]} 8. Qxc4 {[%emt 0:03:10]} b6 {[%emt 0:00:26]} 9. f3 $15 {[%emt 0:17:26]} (9. Nf3 $11) 9... Ba6 {[%emt 0:05:38]} 10. Qa4 {[%emt 0:00:48]} h6 {[%emt 0:01:37]} 11. Bh4 {[%emt 0:01:57]} Qd7 {[%emt 0:01:18]} 12. Qxd7 {[%emt 0:02:07]} Nbxd7 {[%emt 0:00:03]} 13. e4 {[%emt 0:05:52]} Bxf1 {[%emt 0:00:14]} 14. Kxf1 {[%emt 0:00:02]} c5 {[%emt 0:00:18]} 15. Ne2 {[%emt 0:02:06]} cxd4 {[%emt 0:03:00]} 16. Nxd4 {[%emt 0:02:32]} Rac8 {[%emt 0:00:48]} 17. Rd1 {[%emt 0:06:05]} e5 {[%emt 0:09:56]} 18. Nb3 {[%emt 0:06:27]} Rc2 {[%emt 0:05:06]} 19. Rd2 {[%emt 0:01:38]} Rxd2 {[%emt 0:00:11]} 20. Nxd2 {[%emt 0:00:02]} Rc8 {[%emt 0:00:11]} 21. Ke2 {[%emt 0:01:48]} Nh5 {[%emt 0:01:20]} 22. Bg3 {[%emt 0:02:06]} Kf8 {[%emt 0:09:32]} 23. Rd1 {[%emt 0:01:55]} Nxg3+ {[%emt 0:00:19]} 24. hxg3 {[%emt 0:00:06]} Rc2 {[%emt 0:02:48]} 25. Rb1 {[%emt 0:02:44]} Nc5 {[%emt 0:01:48]} 26. Kd1 {[%emt 0:01:37]} Rxd2+ {[%emt 0:00:21]} 27. Kxd2 {[%emt 0:00:03]} Ke7 {[%emt 0:00:08]} 28. Kc3 {[%emt 0:04:26]} a6 {[%emt 0:03:51]} 29. Rd1 {[%emt 0:01:39]} Nb7 {[%emt 0:00:30]} 30. Kc4 {[%emt 0:03:38]} Ke6 {[%emt 0:00:22]} 31. Kd3 {[%emt 0:01:03]} Nd6 {[%emt 0:00:47]} 32. Rc1 {[%emt 0:00:40]} Kd7 {[%emt 0:00:07]} 33. a4 {[%emt 0:04:44]} f6 {[%emt 0:00:57]} 34. Ke3 {[%emt 0:02:14]} Nb7 {[%emt 0:00:34]} 35. b4 {[%emt 0:00:35]} Nd6 {[%emt 0:00:42]} 36. g4 {[%emt 0:05:06]} Nb7 {[%emt 0:00:33]} 37. Kf2 {[%emt 0:04:46]} Nd6 {[%emt 0:02:10]} 38. Kg3 {[%emt 0:01:36]} Nc8 {[%emt 0:03:34]} 39. Kh4 {[%emt 0:02:00]} g6 {[%emt 0:01:41]} 40. Kg3 {[%emt 0:00:00]} Ne7 {[%emt 0:00:00]} 41. Kf2 {[%emt 0:02:32]} g5 {[%emt 0:02:22]} 42. Ke3 {[%emt 0:00:45]} Kd6 {[%emt 0:05:06]} 43. Rh1 {[%emt 0:00:49]} Nc6 {[%emt 0:04:46]} 44. b5 {[%emt 0:12:21]} axb5 {[%emt 0:00:07]} 45. axb5 {[%emt 0:00:28]} Nd4 {[%emt 0:00:06]} 46. Rxh6 {[%emt 0:00:27]} Ke6 {[%emt 0:00:09]} 47. Rh7 {[%emt 0:01:48]} Nxb5 {[%emt 0:01:47]} 48. Rb7 {[%emt 0:01:12]} Nd4 {[%emt 0:00:08]} 49. Rxb6+ {[%emt 0:00:05]} Kf7 {[%emt 0:00:28]} 50. Kd3 {[%emt 0:00:24]} Ke7 {[%emt 0:03:50]} 51. Kc4 {[%emt 0:00:26]} Ne2 {[%emt 0:00:49]} 52. Rb2 {[%emt 0:01:16]} Nf4 {[%emt 0:02:00]} 53. g3 {[%emt 0:00:05]} Nh3 {[%emt 0:00:22]} 54. Rg2 {[%emt 0:00:28]} Kd6 {[%emt 0:00:31]} 55. Kb5 {[%emt 0:00:47]} Kd7 {[%emt 0:00:11]} 56. Kc5 {[%emt 0:00:30]} Kc7 {[%emt 0:00:07]} 57. Kd5 {[%emt 0:00:55]} Kd7 58. Ra2 {[%emt 0:00:56]} Ng1 {[%emt 0:00:10]} 59. Ra7+ {[%emt 0:00:13]} Kd8 {[%emt 0:00:15]} 60. Kd6 {[%emt 0:00:16]} Kc8 {[%emt 0:00:10]} 1-0

[Event "58th Akiba Rubinstein A 2022"]
[Site "Polanica-Zdroj"]
[Date "2022.08.15"]
[Round "3.11"]
[White "Bugajski, Robert"]
[Black "Skrzyczek, Tomasz"]
[Result "1-0"]
[ECO "A41"]
[WhiteElo "2075"]
[BlackElo "1909"]
[Annotator "NA RC"]
[PlyCount "123"]
[EventDate "2022.08.13"]
[EventCountry "POL"]
[SourceTitle "playchess.com"]
[Source "ChessBase"]
[SourceQuality "1"]
[TimeControl "40/5400+30:1800+30"]

1. d4 {[%emt 0:00:03]} d6 {[%emt 0:00:35]} 2. Nf3 {[%emt 0:00:37]} Bg4 {[%emt 0:00:04]} 3. e4 {[%emt 0:01:47]} Nf6 {[%emt 0:01:23]} 4. Nc3 {[%emt 0:00:36]} e6 {[%emt 0:01:47]} 5. h3 {[%emt 0:00:47]} Bh5 {[%emt 0:00:42]} 6. Be2 {[%emt 0:03:08]} d5 {[%emt 0:09:16]} 7. exd5 $1 {[%emt 0:03:37]} exd5 {[%emt 0:00:39]} 8. O-O {[%emt 0:02:30]} Be7 {[%emt 0:16:26]} 9. Ne5 {[%emt 0:08:23]} Bxe2 {[%emt 0:01:12]} 10. Qxe2 {[%emt 0:00:04]} c6 {[%emt 0:13:15]} 11. Re1 $14 {[%emt 0:02:23]} O-O {[%emt 0:00:05]} 12. Ng4 {[%emt 0:01:45]} Bd6 {[%emt 0:05:16]} 13. Bg5 {[%emt 0:00:45]} Nbd7 {[%emt 0:00:35]} 14. Qf3 {[%emt 0:02:53]} h6 {[%emt 0:12:17]} 15. Bh4 {[%emt 0:04:31]} Kh8 {[%emt 0:00:30]} 16. Ne5 {[%emt 0:16:48]} Qc7 {[%emt 0:04:34]} 17. Nxd7 {[%emt 0:01:38]} Nxd7 {[%emt 0:02:01]} 18. Re2 {[%emt 0:08:38]} f6 {[%emt 0:13:05]} 19. Rae1 {[%emt 0:01:12]} Rfd8 {[%emt 0:00:02]} 20. Qg4 {[%emt 0:02:21]} Nf8 {[%emt 0:00:48]} 21. Bg3 {[%emt 0:00:50]} Qd7 {[%emt 0:04:53]} 22. Qf3 {[%emt 0:04:24]} Nh7 {[%emt 0:06:11]} 23. Bxd6 {[%emt 0:02:16]} Qxd6 {[%emt 0:00:01]} 24. Qg4 {[%emt 0:02:44]} Qf8 {[%emt 0:01:39]} 25. Qg6 {[%emt 0:01:54]} Qg8 {[%emt 0:02:28]} 26. Re7 {[%emt 0:01:17]} Nf8 {[%emt 0:00:07]} 27. Qf5 {[%emt 0:01:17]} Rab8 {[%emt 0:01:18]} 28. Na4 {[%emt 0:03:05]} b6 {[%emt 0:01:23]} 29. Rxa7 {[%emt 0:01:22]} Ra8 {[%emt 0:00:06]} 30. Rxa8 {[%emt 0:03:16]} Rxa8 {[%emt 0:00:01]} 31. Nxb6 {[%emt 0:00:18]} Rb8 {[%emt 0:01:22]} 32. Nd7 {[%emt 0:01:42]} Nxd7 {[%emt 0:01:11]} 33. Qxd7 {[%emt 0:00:03]} Qc8 {[%emt 0:00:59]} 34. Qxc8+ {[%emt 0:01:49]} Rxc8 {[%emt 0:00:01]} 35. Re3 {[%emt 0:05:10]} Kg8 {[%emt 0:00:09]} 36. Rc3 {[%emt 0:00:14]} Kf7 {[%emt 0:00:06]} 37. b4 {[%emt 0:02:50]} Rb8 {[%emt 0:00:02]} 38. a3 {[%emt 0:01:14]} Rb6 {[%emt 0:00:01]} 39. Kf1 {[%emt 0:00:52]} Ke6 {[%emt 0:00:12]} 40. Ke2 {[%emt 0:00:00]} g5 {[%emt 0:00:00]} 41. Kd2 {[%emt 0:02:38]} h5 {[%emt 0:02:57]} 42. Re3+ {[%emt 0:00:14]} Kd6 {[%emt 0:01:44]} 43. Kc3 {[%emt 0:00:17]} Rb8 {[%emt 0:00:13]} 44. Kb3 {[%emt 0:00:20]} h4 {[%emt 0:00:41]} 45. c4 {[%emt 0:00:26]} f5 {[%emt 0:02:29]} 46. Re5 {[%emt 0:02:37]} Rf8 {[%emt 0:01:05]} 47. cxd5 {[%emt 0:02:21]} cxd5 {[%emt 0:00:03]} 48. f3 {[%emt 0:00:54]} g4 {[%emt 0:00:17]} 49. f4 {[%emt 0:07:02]} gxh3 {[%emt 0:01:41]} 50. gxh3 {[%emt 0:00:02]} Rg8 {[%emt 0:00:05]} 51. Rxf5 {[%emt 0:00:20]} Rg3+ {[%emt 0:00:02]} 52. Ka4 {[%emt 0:00:27]} Rxh3 {[%emt 0:00:05]} 53. Rf6+ {[%emt 0:00:51]} Ke7 {[%emt 0:00:18]} 54. Rh6 {[%emt 0:00:20]} Rd3 {[%emt 0:00:52]} 55. Rxh4 {[%emt 0:00:28]} Rxd4 {[%emt 0:00:01]} 56. Kb5 {[%emt 0:00:17]} Rd1 {[%emt 0:00:12]} 57. a4 {[%emt 0:00:43]} d4 {[%emt 0:00:04]} 58. f5 {[%emt 0:02:05]} Kf6 {[%emt 0:00:33]} 59. a5 {[%emt 0:02:39]} Ke5 {[%emt 0:00:48]} 60. a6 {[%emt 0:00:52]} d3 {[%emt 0:00:19]} 61. Rh8 {[%emt 0:01:32]} d2 {[%emt 0:03:10]} 62. Rd8 {[%emt 0:00:10]} 1-0

[Event "58th Akiba Rubinstein A 2022"]
[Site "Polanica-Zdroj"]
[Date "2022.08.15"]
[Round "3.12"]
[White "Paszkowski, Krystian"]
[Black "Smietanska, Wiktoria"]
[Result "0-1"]
[ECO "B27"]
[WhiteElo "1988"]
[BlackElo "1919"]
[Annotator "NA RC"]
[PlyCount "90"]
[EventDate "2022.08.13"]
[EventCountry "POL"]
[SourceTitle "playchess.com"]
[Source "ChessBase"]
[SourceQuality "1"]
[TimeControl "40/5400+30:1800+30"]

1. e4 {[%emt 0:00:05]} c5 {[%emt 0:00:05]} 2. Nf3 {[%emt 0:00:04]} g6 {[%emt 0:00:08]} 3. c4 {[%emt 0:00:51]} Nc6 {[%emt 0:00:26]} 4. d4 {[%emt 0:00:10]} cxd4 {[%emt 0:00:13]} 5. Nxd4 {[%emt 0:00:06]} Nf6 {[%emt 0:00:17]} 6. Nc3 {[%emt 0:01:32]} d6 {[%emt 0:00:09]} 7. f3 {[%emt 0:03:37]} Nxd4 {[%emt 0:00:09]} 8. Qxd4 {[%emt 0:00:09]} Bg7 {[%emt 0:00:10]} 9. Be3 {[%emt 0:02:13]} O-O {[%emt 0:00:10]} 10. Qd2 {[%emt 0:01:32]} a5 {[%emt 0:02:11]} 11. Be2 {[%emt 0:15:06]} a4 {[%emt 0:01:19]} 12. O-O {[%emt 0:18:17]} Be6 {[%emt 0:01:49]} 13. Nb5 {[%emt 0:20:10]} Bd7 {[%emt 0:14:00]} 14. Nd4 {[%emt 0:12:20]} Qa5 {[%emt 0:03:07]} 15. Rfd1 {[%emt 0:01:47]} Rfc8 {[%emt 0:03:17]} 16. Bf1 {[%emt 0:02:34]} Ne8 {[%emt 0:05:53]} 17. Qf2 {[%emt 0:08:48]} Nc7 {[%emt 0:02:20]} 18. Rac1 {[%emt 0:02:28]} Ne6 {[%emt 0:04:20]} 19. Nxe6 {[%emt 0:02:34]} Bxe6 {[%emt 0:00:09]} 20. Bd4 {[%emt 0:00:57]} Qb4 {[%emt 0:03:01]} 21. Bxg7 {[%emt 0:00:26]} Kxg7 {[%emt 0:00:08]} 22. a3 {[%emt 0:01:28]} Qc5 {[%emt 0:01:17]} 23. Rc3 {[%emt 0:01:37]} Ra5 {[%emt 0:02:57]} 24. Qxc5 {[%emt 0:00:59]} Raxc5 {[%emt 0:00:09]} 25. Rdc1 {[%emt 0:00:57]} R5c6 {[%emt 0:03:21]} 26. Kf2 {[%emt 0:00:58]} Rb6 {[%emt 0:00:25]} 27. R1c2 {[%emt 0:00:51]} f5 {[%emt 0:01:37]} 28. exf5 {[%emt 0:00:45]} Bxf5 {[%emt 0:02:02]} 29. Re2 {[%emt 0:01:00]} Kf6 {[%emt 0:02:10]} 30. g4 {[%emt 0:00:13]} Bd7 {[%emt 0:02:58]} 31. Rd2 {[%emt 0:00:28]} Rbc6 {[%emt 0:01:15]} 32. Re3 {[%emt 0:00:52]} g5 {[%emt 0:02:06]} 33. Rc3 {[%emt 0:00:34]} Be6 {[%emt 0:02:05]} 34. Rdc2 {[%emt 0:00:19]} Bf7 {[%emt 0:01:05]} 35. Ke3 {[%emt 0:00:35]} Bg6 {[%emt 0:01:32]} 36. Rd2 {[%emt 0:00:33]} e5 {[%emt 0:01:35]} 37. Bd3 {[%emt 0:00:32]} Bxd3 {[%emt 0:01:04]} 38. Rcxd3 {[%emt 0:00:32]} Ke6 {[%emt 0:00:24]} 39. Rd5 {[%emt 0:00:27]} Rb6 {[%emt 0:01:10]} 40. Rb5 {[%emt 0:00:00]} Rxb5 {[%emt 0:00:00]} 41. cxb5 {[%emt 0:00:35]} Rc5 {[%emt 0:00:36]} 42. h4 {[%emt 0:04:22]} h6 {[%emt 0:00:39]} 43. hxg5 {[%emt 0:00:39]} hxg5 {[%emt 0:00:04]} 44. b6 {[%emt 0:10:02]} Rb5 {[%emt 0:00:21]} 45. Rh2 {[%emt 0:01:49]} Rb3+ {[%emt 0:01:07]} 0-1

[Event "58th Akiba Rubinstein A 2022"]
[Site "Polanica-Zdroj"]
[Date "2022.08.15"]
[Round "3.13"]
[White "Lambrecht, Tomasz"]
[Black "Wolanski, Michal"]
[Result "1-0"]
[ECO "A04"]
[WhiteElo "1956"]
[BlackElo "2005"]
[Annotator "NA RC"]
[PlyCount "43"]
[EventDate "2022.08.13"]
[EventCountry "POL"]
[SourceTitle "playchess.com"]
[Source "ChessBase"]
[SourceQuality "1"]
[TimeControl "40/5400+30:1800+30"]

1. Nf3 {[%emt 0:00:37]} c5 {[%emt 0:00:06]} 2. c4 {[%emt 0:00:03]} Nc6 {[%emt 0:00:05]} 3. e3 {[%emt 0:00:04]} Nf6 {[%emt 0:00:14]} 4. Nc3 {[%emt 0:00:08]} g6 {[%emt 0:00:12]} 5. d4 {[%emt 0:00:05]} cxd4 {[%emt 0:00:05]} 6. exd4 {[%emt 0:00:02]} d5 {[%emt 0:00:10]} 7. cxd5 {[%emt 0:00:12]} Nxd5 {[%emt 0:00:09]} 8. Qb3 {[%emt 0:00:03]} Nxc3 {[%emt 0:03:36]} 9. Bc4 {[%emt 0:00:10]} Nd5 {[%emt 0:01:01]} 10. Bxd5 {[%emt 0:01:32]} e6 {[%emt 0:00:07]} 11. Bxc6+ {[%emt 0:00:03]} bxc6 {[%emt 0:00:07]} 12. O-O {[%emt 0:00:05]} Qb6 {[%emt 0:02:08]} 13. Qe3 $14 {[%emt 0:03:57]} Bg7 {[%emt 0:00:41]} 14. b3 {[%emt 0:01:47]} O-O {[%emt 0:00:46]} 15. Ba3 Rd8 {[%emt 0:00:10]} 16. Bc5 {[%emt 0:03:15]} Qa5 {[%emt 0:01:58]} 17. Ne5 {[%emt 0:05:10]} Bb7 {[%emt 0:00:49]} 18. Rfe1 {[%emt 0:04:13]} Rd5 {[%emt 0:32:34]} 19. Nxf7 {[%emt 0:19:25]} e5 {[%emt 0:05:01]} 20. b4 {[%emt 0:08:56]} exd4 {[%emt 0:09:23]} 21. Qe6 {[%emt 0:02:14]} Qc7 {[%emt 0:08:53]} 22. Nd8+ {[%emt 0:00:54]} 1-0

[Event "58th Akiba Rubinstein A 2022"]
[Site "Polanica-Zdroj"]
[Date "2022.08.15"]
[Round "3.14"]
[White "Siekanska, Zuzanna"]
[Black "Motyl, Tomasz"]
[Result "0-1"]
[ECO "D31"]
[WhiteElo "1712"]
[BlackElo "1936"]
[Annotator "NA RC"]
[PlyCount "94"]
[EventDate "2022.08.13"]
[EventCountry "POL"]
[SourceTitle "playchess.com"]
[Source "ChessBase"]
[SourceQuality "1"]
[TimeControl "40/5400+30:1800+30"]

1. d4 {[%emt 0:00:02]} d5 {[%emt 0:00:23]} 2. c4 {[%emt 0:00:05]} e6 {[%emt 0:00:10]} 3. Nc3 {[%emt 0:00:07]} Be7 {[%emt 0:00:37]} 4. Nf3 {[%emt 0:00:57]} Nf6 {[%emt 0:00:30]} 5. cxd5 {[%emt 0:00:45]} exd5 {[%emt 0:00:32]} 6. Bg5 {[%emt 0:00:20]} h6 {[%emt 0:01:18]} 7. Bf4 {[%emt 0:00:32]} O-O {[%emt 0:07:00]} 8. e3 {[%emt 0:01:02]} c6 $11 {[%emt 0:07:52]} 9. Bd3 {[%emt 0:00:14]} Be6 {[%emt 0:09:05]} 10. h3 {[%emt 0:02:18]} Nbd7 {[%emt 0:01:58]} 11. O-O {[%emt 0:00:16]} a6 {[%emt 0:04:11]} 12. Ne5 {[%emt 0:01:10]} Nxe5 {[%emt 0:02:43]} 13. Bxe5 {[%emt 0:03:00]} Nd7 {[%emt 0:01:32]} 14. Bh2 {[%emt 0:03:05]} b6 {[%emt 0:02:27]} 15. Ne2 {[%emt 0:01:46]} Re8 {[%emt 0:16:39]} 16. Rc1 {[%emt 0:03:06]} c5 {[%emt 0:03:02]} 17. dxc5 {[%emt 0:01:59]} bxc5 {[%emt 0:01:45]} 18. Nf4 {[%emt 0:03:32]} Qb6 {[%emt 0:06:13]} 19. b3 {[%emt 0:03:08]} Rac8 {[%emt 0:03:27]} 20. Bb1 {[%emt 0:08:46]} Nf6 {[%emt 0:02:11]} 21. Nxe6 {[%emt 0:15:58]} Qxe6 {[%emt 0:01:10]} 22. Qf3 {[%emt 0:00:26]} g6 {[%emt 0:01:39]} 23. Qf4 {[%emt 0:05:30]} Bf8 {[%emt 0:02:19]} 24. Rfd1 {[%emt 0:02:12]} c4 {[%emt 0:04:12]} 25. bxc4 {[%emt 0:02:12]} dxc4 {[%emt 0:00:38]} 26. Rd4 {[%emt 0:02:17]} c3 {[%emt 0:02:18]} 27. Bg3 {[%emt 0:07:20]} Nh5 {[%emt 0:02:37]} 28. Qf3 {[%emt 0:01:19]} Nxg3 {[%emt 0:01:42]} 29. Qxg3 {[%emt 0:00:12]} Bg7 {[%emt 0:01:06]} 30. Rd6 {[%emt 0:02:22]} Qc4 {[%emt 0:02:14]} 31. Rd7 {[%emt 0:05:55]} Qb5 {[%emt 0:02:19]} 32. Qd6 {[%emt 0:07:39]} c2 {[%emt 0:04:44]} 33. Bxc2 {[%emt 0:00:57]} Bb2 {[%emt 0:00:15]} 34. Rxf7 {[%emt 0:03:34]} Kxf7 {[%emt 0:01:09]} 35. Qxg6+ {[%emt 0:00:43]} Kf8 {[%emt 0:01:01]} 36. Qxh6+ {[%emt 0:01:34]} Bg7 {[%emt 0:00:37]} 37. Qf4+ {[%emt 0:03:08]} Kg8 {[%emt 0:02:28]} 38. g3 {[%emt 0:00:47]} Rxc2 {[%emt 0:00:23]} 39. Rd1 {[%emt 0:00:55]} Qc6 {[%emt 0:00:31]} 40. Qg4 {[%emt 0:00:00]} Rc1 {[%emt 0:00:00]} 41. Rxc1 {[%emt 0:02:20]} Qxc1+ {[%emt 0:04:17]} 42. Kg2 {[%emt 0:00:09]} Qc6+ {[%emt 0:00:26]} 43. Kh2 {[%emt 0:00:09]} Rb8 {[%emt 0:00:44]} 44. h4 {[%emt 0:01:01]} Rb2 {[%emt 0:04:12]} 45. Qf5 {[%emt 0:00:58]} Qf6 {[%emt 0:01:15]} 46. Qd5+ {[%emt 0:00:43]} Qf7 {[%emt 0:02:26]} 47. Qxf7+ {[%emt 0:00:47]} Kxf7 {[%emt 0:00:08]} 0-1